fUSD/lending_fUSD_20240617
["ID","MTS","AMOUNT","RATE_DAILY","PERIOD"]
[329766622,1718655065797,-500.0,0.00022465,3]
[329766623,1718655065806,-1415.28,0.00022465,3]
[329766624,1718655065816,-6325.01,0.00022465,3]
[329766625,1718655065825,-601.58,0.00022465,3]
[329766626,1718655065834,-500.0,0.00022465,3]
[329766627,1718655065843,-500.0,0.00022465,3]
[329766628,1718655065852,-1507.65,0.00022465,3]
[329766629,1718655065861,-500.0,0.00022465,3]
[329766630,1718655065870,-1881.97,0.00022465,3]
[329766631,1718655065879,-1106.23,0.00022465,3]
[329766632,1718655065888,-516.66,0.00022465,3]
[329766633,1718655065897,-443.83773453,0.00022465,3]
[329766634,1718655065906,-5621.4,0.00022465,3]
[329766635,1718655065915,-500.0,0.00022465,3]
[329766636,1718655065927,-1778.27,0.00022465,3]
[329766637,1718655065939,-500.0,0.00022465,3]
[329766638,1718655065948,-2784.61,0.00022465,3]
[329766639,1718655065958,-500.0,0.00022465,3]
[329766640,1718655065969,-1851.7,0.00022465,3]
[329766641,1718655065978,-320.44,0.00022465,3]
[329766642,1718655065987,-1063.62,0.00022465,3]
[329766643,1718655065998,-11051.7,0.00022465,3]
[329766644,1718655066009,-1854.94,0.00022465,3]
[329766645,1718655066019,-446.04674714,0.00022465,3]
[329766646,1718655066028,-2016.72,0.00022465,3]
[329766647,1718655066038,-2072.97,0.00022465,3]
[329766648,1718655066048,-790.89,0.00022465,3]
[329766649,1718655066058,-5579.65,0.00022465,3]
[329766650,1718655066067,-22371.52014936,0.00022465,3]
[329766651,1718655066105,-25528.08985064,0.00022465,3]
[329766652,1718655066114,-500.0,0.00022465,3]
[329766653,1718655066124,-577.6220773,0.00022465,3]
[329766654,1718655066133,-500.0,0.00022465,3]
[329766655,1718655066145,-500.0,0.00022465,3]
[329766656,1718655066154,-2841.5,0.00022465,3]
[329766657,1718655066163,-500.0,0.00022465,3]
[329766658,1718655066172,-15295.92,0.00022465,3]
[329766659,1718655066182,-730.19,0.00022465,3]
[329766660,1718655066191,-1117.79,0.00022465,3]
[329766661,1718655066200,-2350.38,0.00022465,3]
[329766662,1718655066210,-500.0,0.00022465,3]
[329766663,1718655066219,-1573.64,0.00022465,3]
[329766664,1718655066228,-436.13,0.00022465,3]
[329766665,1718655066238,-738.05,0.00022465,3]
[329766666,1718655066248,-4608.0,0.00022465,3]
[329766667,1718655066257,-500.0,0.00022465,3]
[329766668,1718655066267,-151.0,0.00022465,7]
[329766669,1718655066276,-6787.12,0.00022465,3]
[329766670,1718655066286,-151.0,0.00022465,7]
[329766671,1718655066295,-500.0,0.00022465,3]
[329766672,1718655066305,-500.0,0.00022465,3]
[329766673,1718655066314,-5784.97,0.00022465,3]
[329766674,1718655066324,-1932.08,0.00022465,3]
[329766675,1718655066333,-500.0,0.00022465,3]
[329766676,1718655066343,-1068.18,0.00022465,3]
[329766677,1718655066352,-500.0,0.00022465,3]
[329766678,1718655066362,-9390.68,0.00022465,3]
[329766679,1718655066371,-944.73,0.00022465,3]
[329766680,1718655066381,-973.74,0.00022465,3]
[329766681,1718655066392,-500.0,0.00022465,3]
[329766682,1718655066401,-8344.7,0.00022465,3]
[329766683,1718655066410,-500.0,0.00022465,3]
[329766684,1718655066419,-722.98,0.00022465,3]
[329766685,1718655066428,-680.11,0.00022465,3]
[329766686,1718655066437,-1161.94,0.00022465,3]
[329766687,1718655066447,-500.0,0.00022465,3]
[329766688,1718655066457,-37609.45807206,0.00022465,3]
[329766689,1718655067041,-155.48394728,0.00017259,2]
[329766690,1718655067052,-266.98385684,0.00017259,2]
[329766691,1718655067064,-457.93219588,0.00021917,2]
[329766692,1718655067076,-42.06780412,0.00021917,2]
[329766693,1718655067085,-151.0,0.00021917,2]
[329766694,1718655067096,-500.0,0.00022191,3]
[329766695,1718655067106,-151.0,0.00022191,7]
[329766696,1718655067116,-215.99809588,0.00022465,3]
[329766697,1718655067137,-151.0,0.00022191,7]
[329766698,1718655067148,-2140.916,0.00022465,3]
[329766699,1718655067160,-2874.13903805,0.00022465,3]
[329766700,1718655067172,-3845.72914333,0.00022465,3]
[329766701,1718655067184,-1374.02393042,0.00022465,3]
[329766702,1718655067200,-608.88572026,0.00022465,3]
[329766703,1718655067210,-500.0,0.00022465,3]
[329766704,1718655067220,-4731.19,0.00022465,3]
[329766705,1718655067408,-1297.77165173,0.00022465,3]
[329766706,1718655067430,-2721.96834827,0.00022465,3]
[329766707,1718655067441,-500.0,0.00022465,3]
[329766708,1718655067451,-1406.8,0.00022465,3]
[329766709,1718655067462,-1875.0631391,0.00022465,3]
[329766710,1718655067474,-691.72985235,0.00022465,3]
[329766711,1718655067486,-461.39700855,0.00022465,3]
[329766712,1718655067495,-285.86051065,0.00022465,3]
[329766713,1718655067508,-214.13948935,0.00022465,3]
[329766714,1718655067518,-144.00363065,0.00022465,3]
[329766715,1718655067529,-6160.14077791,0.00022465,3]
[329766716,1718655067545,-821.0140397,0.00022465,3]
[329766717,1718655067557,-422.91126348,0.00022465,3]
[329766719,1718655366151,681.63,0.00021589,30]
[329766722,1718655829441,10000.0,0.000275,120]
[329766728,1718655961182,624.82,0.00021589,30]
[329766744,1718656233253,-869.59389419,0.00017158,2]
[329766745,1718656233263,-331.7355,0.00017159,2]
[329766746,1718656233273,-300.24,0.00018726,2]
[329766747,1718656233283,-150.0,0.00019725,2]
[329766748,1718656233292,-499.99,0.00019726,2]
[329766749,1718656233302,-751.9144439,0.00020513,3]
[329766750,1718656233315,-9878.12,0.00020607,2]
[329766751,1718656233326,-250.0,0.00020613,2]
[329766752,1718656233340,-793.20616191,0.00020613,2]
[329766753,1718656233442,-1031.86284084,0.00020613,2]
[329766754,1718656233453,-394.95499992,0.00020613,2]
[329766755,1718656233464,-21616.54762948,0.00020613,2]
[329766756,1718656233503,-4446.60836785,0.00020613,2]
[329766757,1718656233512,-1500.0,0.0002066,5]
[329766758,1718656233522,-400.0,0.00020668,2]
[329766759,1718656233531,-200.0,0.00020756,2]
[329766760,1718656233541,-300.24,0.0002099,2]
[329766761,1718656233550,-751.9144439,0.00021616,3]
[329766762,1718656233559,-11360.69317694,0.00021706,2]
[329766764,1718656233593,-2307.44308,0.00021706,2]
[329766768,1718656233622,-13348.85250713,0.00021706,2]
[329766769,1718656233632,-4462.40395387,0.00021716,2]
[329766780,1718656239061,-367.43154613,0.00021716,2]
[329766782,1718656239074,-6781.2972597,0.00021716,2]
[329766790,1718656239272,-1119.95985758,0.00021716,2]
[329766791,1718656239284,-667.47681,0.00021716,2]
[329766792,1718656239295,-679.15516536,0.00021716,2]
[329766793,1718656239384,-11362.50358504,0.00021716,2]
[329766796,1718656239446,-703.0,0.00021716,2]
[329766915,1718656240899,-312.3160075,0.00021716,2]
[329766916,1718656240912,-19625.62031482,0.00021716,2]
[329766917,1718656240923,-4891.7275,0.00021716,2]
[329766918,1718656240933,-803.3345,0.00021716,2]
[329766919,1718656240942,-10523.0153,0.00021716,2]
[329766920,1718656240952,-1000.0,0.00021716,2]
[329766921,1718656240961,-2500.0,0.00021716,2]
[329766922,1718656240971,-271.56232827,0.00021716,2]
[329766923,1718656240980,-166.33984633,0.00021716,2]
[329766924,1718656240990,-271.56232825,0.00021741,2]
[329766925,1718656240999,-157.14,0.00021757,3]
[329766926,1718656241010,-271.56232825,0.00021767,2]
[329766927,1718656241020,-271.56232825,0.00021792,2]
[329766928,1718656241030,-207.48520993,0.00021806,2]
[329766929,1718656241040,-1280.07015248,0.00021815,2]
[329766930,1718656241050,-100000.0,0.00021816,2]
[329766931,1718656241060,-3162.122,0.00021816,2]
[329766932,1718656241071,-245000.0,0.00021816,2]
[329766933,1718656241082,-500.0,0.00021816,2]
[329766934,1718656241092,-118972.9018,0.00021816,2]
[329766935,1718656241103,-1000.0,0.00021816,2]
[329766936,1718656241112,-7500.0,0.00021816,2]
[329766937,1718656241123,-238.04287716,0.00021816,2]
[329766938,1718656241133,-441.5783,0.00021817,2]
[329766939,1718656241143,-7775.91624969,0.00021817,2]
[329766940,1718656241152,-271.56232825,0.00021817,2]
[329766941,1718656241162,-181.30067281,0.00021817,2]
[329766942,1718656241172,-155.94476457,0.00021817,2]
[329766943,1718656241182,-174.01036977,0.00021817,2]
[329766944,1718656241192,-911.56416294,0.000219,2]
[329766945,1718656241201,-334.29552451,0.00021914,2]
[329766946,1718656241211,-155.0,0.00021914,2]
[329766947,1718656241220,-364.20577069,0.00021914,2]
[329766948,1718656241229,-155.0,0.00021915,2]
[329766949,1718656241238,-19112.11746559,0.00021915,2]
[329766950,1718656241248,-319447.93475591,0.00021916,2]
[329766951,1718656241257,-168.85374423,0.00021916,2]
[329766952,1718656241268,-2766.02384823,0.00021917,2]
[329766953,1718656241277,-500.0,0.00021917,2]
[329766954,1718656241286,-500.0,0.00021917,2]
[329766955,1718656241295,-500.0,0.00021917,2]
[329766956,1718656241304,-559.63,0.00021917,2]
[329766957,1718656241316,-500.0,0.00021917,2]
[329766958,1718656241327,-500.0,0.00021917,2]
[329766959,1718656241339,-500.0,0.00021917,2]
[329766960,1718656241348,-161.54912091,0.00021917,2]
[329766961,1718656241358,-500.0,0.00021917,2]
[329766962,1718656241367,-500.0,0.00021917,2]
[329766963,1718656241378,-512.09,0.00021917,2]
[329766964,1718656241388,-621.38,0.00021917,2]
[329766965,1718656241398,-500.0,0.00021917,2]
[329766966,1718656241407,-581.4,0.00021917,2]
[329766967,1718656241420,-500.0,0.00021917,2]
[329766968,1718656241429,-510.51,0.00021917,2]
[329766969,1718656241439,-500.0,0.00021917,2]
[329766970,1718656241449,-525.11,0.00021917,2]
[329766971,1718656241458,-500.0,0.00021917,2]
[329766972,1718656241468,-500.0,0.00021917,2]
[329766973,1718656241478,-159.54441305,0.00021917,2]
[329766974,1718656241488,-500.0,0.00021917,2]
[329766975,1718656241499,-500.0,0.00021917,2]
[329766976,1718656241508,-500.0,0.00021917,2]
[329766977,1718656241518,-716.21,0.00021917,2]
[329766978,1718656241528,-500.0,0.00021917,2]
[329766979,1718656241538,-500.0,0.00021917,2]
[329766980,1718656241548,-500.0,0.00021917,2]
[329766981,1718656241558,-500.0,0.00021917,2]
[329766982,1718656241570,-500.0,0.00021917,2]
[329766983,1718656241580,-500.0,0.00021917,2]
[329766984,1718656241590,-500.0,0.00021917,2]
[329766985,1718656241600,-500.0,0.00021917,2]
[329766986,1718656241611,-500.0,0.00021917,2]
[329766987,1718656241621,-500.0,0.00021917,2]
[329766988,1718656241631,-500.0,0.00021917,2]
[329766989,1718656241640,-578.2182264,0.00021917,2]
[329766990,1718656241649,-500.0,0.00021917,2]
[329766991,1718656241659,-760.09,0.00021917,2]
[329766992,1718656241668,-500.0,0.00021917,2]
[329766993,1718656241678,-12.39409277,0.00021917,2]
[329766994,1718656241694,-487.60590723,0.00021917,2]
[329766995,1718656241704,-500.0,0.00021917,2]
[329766996,1718656241713,-500.0,0.00021917,2]
[329766997,1718656241723,-500.0,0.00021917,2]
[329766998,1718656241732,-383.8690612,0.00021917,2]
[329766999,1718656241763,-116.1309388,0.00021917,2]
[329767000,1718656241773,-500.0,0.00021917,2]
[329767001,1718656241782,-500.0,0.00021917,2]
[329767002,1718656241792,-500.0,0.00021917,2]
[329767003,1718656241802,-381.03534475,0.00021917,2]
[329767004,1718656241815,-118.96465525,0.00021917,2]
[329767005,1718656241825,-500.0,0.00021917,2]
[329767006,1718656241835,-566.29968192,0.00021917,2]
[329767007,1718656241845,-411.6157292,0.00021917,2]
[329767008,1718656241857,-88.3842708,0.00021917,2]
[329767009,1718656241867,-220.74211975,0.00021917,2]
[329767010,1718656241880,-601.14788025,0.00021917,2]
[329767011,1718656241890,-500.0,0.00021917,2]
[329767012,1718656241900,-500.0,0.00021917,2]
[329767013,1718656241910,-500.0,0.00021917,2]
[329767014,1718656241919,-500.0,0.00021917,2]
[329767015,1718656241929,-837.88,0.00021917,2]
[329767016,1718656241938,-500.0,0.00021917,2]
[329767017,1718656241948,-500.0,0.00021917,2]
[329767018,1718656241958,-500.0,0.00021917,2]
[329767019,1718656241967,-586.48134667,0.00021917,2]
[329767020,1718656241977,-500.0,0.00021917,2]
[329767021,1718656241986,-500.0,0.00021917,2]
[329767022,1718656241996,-500.0,0.00021917,2]
[329767023,1718656242006,-685.81,0.00021917,2]
[329767024,1718656242015,-500.0,0.00021917,2]
[329767025,1718656242025,-500.0,0.00021917,2]
[329767026,1718656242034,-635.05,0.00021917,2]
[329767027,1718656242044,-500.0,0.00021917,2]
[329767029,1718656242054,-628.41162991,0.00021917,2]
[329767031,1718656242065,-500.0,0.00021917,2]
[329767033,1718656242074,-500.0,0.00021917,2]
[329767035,1718656242084,-500.0,0.00021917,2]
[329767037,1718656242093,-500.0,0.00021917,2]
[329767039,1718656242103,-500.0,0.00021917,2]
[329767041,1718656242112,-500.0,0.00021917,2]
[329767043,1718656242121,-500.0,0.00021917,2]
[329767045,1718656242131,-500.0,0.00021917,2]
[329767047,1718656242140,-514.54,0.00021917,2]
[329767049,1718656242149,-500.0,0.00021917,2]
[329767051,1718656242158,-500.0,0.00021917,2]
[329767054,1718656242167,-500.0,0.00021917,2]
[329767056,1718656242176,-500.0,0.00021917,2]
[329767058,1718656242186,-500.0,0.00021917,2]
[329767060,1718656242195,-500.0,0.00021917,2]
[329767061,1718656242204,-500.0,0.00021917,2]
[329767062,1718656242214,-500.0,0.00021917,2]
[329767064,1718656242223,-500.0,0.00021917,2]
[329767066,1718656242233,-500.0,0.00021917,2]
[329767068,1718656242242,-647.8,0.00021917,2]
[329767070,1718656242251,-500.0,0.00021917,2]
[329767072,1718656242260,-272.30197718,0.00021917,2]
[329767074,1718656242269,-579.8,0.00021917,2]
[329767076,1718656242279,-267.6581292,0.00021917,2]
[329767078,1718656242288,-500.0,0.00021917,2]
[329767080,1718656242297,-500.0,0.00021917,2]
[329767082,1718656242306,-500.0,0.00021917,2]
[329767084,1718656242315,-228.37142894,0.00021917,2]
[329767086,1718656242325,-546.26,0.00021917,2]
[329767088,1718656242337,-2170.87,0.00021917,2]
[329767090,1718656242346,-500.0,0.00021917,2]
[329767092,1718656242355,-500.0,0.00021917,2]
[329767094,1718656242365,-500.0,0.00021917,2]
[329767096,1718656242374,-500.0,0.00021917,2]
[329767097,1718656242383,-500.0,0.00021917,2]
[329767100,1718656242393,-364.58035896,0.00021917,2]
[329767101,1718656242402,-500.0,0.00021917,2]
[329767104,1718656242411,-500.0,0.00021917,2]
[329767106,1718656242422,-500.0,0.00021917,2]
[329767107,1718656242432,-500.0,0.00021917,2]
[329767109,1718656242441,-909.87,0.00021917,2]
[329767111,1718656242450,-500.0,0.00021917,2]
[329767113,1718656242460,-500.0,0.00021917,2]
[329767115,1718656242470,-500.02,0.00021917,2]
[329767118,1718656242479,-500.0,0.00021917,2]
[329767120,1718656242488,-550.89906798,0.00021917,2]
[329767121,1718656242497,-500.0,0.00021917,2]
[329767123,1718656242506,-1045.3,0.00021917,2]
[329767125,1718656242516,-544.18,0.00021917,2]
[329767127,1718656242525,-500.0,0.00021917,2]
[329767129,1718656242535,-500.0,0.00021917,2]
[329767131,1718656242544,-912.62,0.00021917,2]
[329767134,1718656242553,-602.81115406,0.00021917,2]
[329767135,1718656242562,-500.0,0.00021917,2]
[329767138,1718656242572,-500.0,0.00021917,2]
[329767139,1718656242582,-500.0,0.00021917,2]
[329767142,1718656242593,-990.99,0.00021917,2]
[329767144,1718656242602,-501.21,0.00021917,2]
[329767145,1718656242611,-500.0,0.00021917,2]
[329767148,1718656242620,-500.0,0.00021917,2]
[329767149,1718656242629,-500.0,0.00021917,2]
[329767152,1718656242638,-916.97,0.00021917,2]
[329767154,1718656242648,-500.0,0.00021917,2]
[329767155,1718656242657,-500.0,0.00021917,2]
[329767157,1718656242666,-500.0,0.00021917,2]
[329767160,1718656242675,-763.93,0.00021917,2]
[329767162,1718656242685,-500.0,0.00021917,2]
[329767163,1718656242694,-500.0,0.00021917,2]
[329767165,1718656242703,-500.0,0.00021917,2]
[329767167,1718656242712,-500.0,0.00021917,2]
[329767169,1718656242722,-500.0,0.00021917,2]
[329767171,1718656242732,-500.0,0.00021917,2]
[329767174,1718656242741,-500.0,0.00021917,2]
[329767176,1718656242750,-500.0,0.00021917,2]
[329767178,1718656242759,-500.0,0.00021917,2]
[329767179,1718656242769,-500.0,0.00021917,2]
[329767182,1718656242778,-500.0,0.00021917,2]
[329767183,1718656242787,-1639.32,0.00021917,2]
[329767185,1718656242797,-500.0,0.00021917,2]
[329767187,1718656242806,-557.92,0.00021917,2]
[329767189,1718656242817,-1183.6,0.00021917,2]
[329767191,1718656242827,-500.0,0.00021917,2]
[329767193,1718656242836,-818.02,0.00021917,2]
[329767195,1718656242846,-250.0,0.00021917,2]
[329767197,1718656242855,-517.72,0.00021917,2]
[329767199,1718656242865,-500.0,0.00021917,2]
[329767201,1718656242874,-500.0,0.00021917,2]
[329767203,1718656242883,-500.0,0.00021917,2]
[329767205,1718656242892,-585.98,0.00021917,2]
[329767207,1718656242901,-524.36,0.00021917,2]
[329767209,1718656242911,-500.0,0.00021917,2]
[329767211,1718656242920,-500.0,0.00021917,2]
[329767213,1718656242929,-500.0,0.00021917,2]
[329767215,1718656242938,-557.85,0.00021917,2]
[329767217,1718656242947,-782.49,0.00021917,2]
[329767219,1718656242957,-500.0,0.00021917,2]
[329767221,1718656242966,-500.0,0.00021917,2]
[329767223,1718656242975,-500.0,0.00021917,2]
[329767225,1718656242985,-1017.99,0.00021917,2]
[329767227,1718656242994,-505.82,0.00021917,2]
[329767229,1718656243003,-500.0,0.00021917,2]
[329767231,1718656243013,-500.0,0.00021917,2]
[329767234,1718656243022,-536.47078329,0.00021917,2]
[329767237,1718656243033,-1066.05,0.00021917,2]
[329767240,1718656243043,-712.53,0.00021917,2]
[329767243,1718656243052,-848.02,0.00021917,2]
[329767247,1718656243061,-500.0,0.00021917,2]
[329767252,1718656243073,-500.0,0.00021917,2]
[329767256,1718656243082,-500.0,0.00021917,2]
[329767259,1718656243093,-500.0,0.00021917,2]
[329767264,1718656243103,-500.0,0.00021917,2]
[329767267,1718656243112,-500.0,0.00021917,2]
[329767271,1718656243122,-944.76,0.00021917,2]
[329767275,1718656243131,-500.0,0.00021917,2]
[329767280,1718656243140,-500.0,0.00021917,2]
[329767283,1718656243150,-500.0,0.00021917,2]
[329767286,1718656243159,-681.16,0.00021917,2]
[329767289,1718656243169,-619.56,0.00021917,2]
[329767292,1718656243178,-500.0,0.00021917,2]
[329767294,1718656243187,-500.0,0.00021917,2]
[329767296,1718656243197,-500.0,0.00021917,2]
[329767298,1718656243206,-585.6,0.00021917,2]
[329767300,1718656243216,-500.0,0.00021917,2]
[329767302,1718656243226,-1021.99,0.00021917,2]
[329767304,1718656243235,-500.0,0.00021917,2]
[329767348,1718656243472,-965.26,0.00021917,2]
[329767350,1718656243482,-500.0,0.00021917,2]
[329767351,1718656243492,-565.8,0.00021917,2]
[329767353,1718656243502,-1033.07,0.00021917,2]
[329767355,1718656243511,-849.54,0.00021917,2]
[329767357,1718656243520,-500.0,0.00021917,2]
[329767359,1718656243531,-500.0,0.00021917,2]
[329767361,1718656243540,-500.0,0.00021917,2]
[329767363,1718656243549,-592.93,0.00021917,2]
[329767365,1718656243559,-500.0,0.00021917,2]
[329767367,1718656243571,-500.0,0.00021917,2]
[329767369,1718656243581,-500.0,0.00021917,2]
[329767371,1718656243590,-500.0,0.00021917,2]
[329767373,1718656243600,-500.0,0.00021917,2]
[329767375,1718656243609,-703.33,0.00021917,2]
[329767377,1718656243618,-561.87,0.00021917,2]
[329767379,1718656243627,-638.91,0.00021917,2]
[329767381,1718656243637,-500.0,0.00021917,2]
[329767383,1718656243646,-1524.94,0.00021917,2]
[329767385,1718656243656,-500.0,0.00021917,2]
[329767387,1718656243665,-500.0,0.00021917,2]
[329767389,1718656243675,-1393.86,0.00021917,2]
[329767391,1718656243684,-1629.22,0.00021917,2]
[329767393,1718656243693,-958.3,0.00021917,2]
[329767395,1718656243703,-807.53,0.00021917,2]
[329767397,1718656243712,-500.0,0.00021917,2]
[329767399,1718656243721,-500.0,0.00021917,2]
[329767402,1718656243731,-500.0,0.00021917,2]
[329767404,1718656243741,-500.0,0.00021917,2]
[329767406,1718656243750,-500.0,0.00021917,2]
[329767408,1718656243760,-500.0,0.00021917,2]
[329767410,1718656243770,-500.0,0.00021917,2]
[329767414,1718656243780,-442.53924275,0.00021917,2]
[329767415,1718656243789,-500.0,0.00021917,2]
[329767418,1718656243799,-500.0,0.00021917,2]
[329767420,1718656243809,-904.39,0.00021917,2]
[329767421,1718656243820,-1047.75,0.00021917,2]
[329767423,1718656243830,-500.0,0.00021917,2]
[329767425,1718656243840,-625.07,0.00021917,2]
[329767428,1718656243850,-907.96,0.00021917,2]
[329767429,1718656243860,-1159.55,0.00021917,2]
[329767430,1718656243870,-500.0,0.00021917,2]
[329767431,1718656243880,-500.0,0.00021917,2]
[329767432,1718656243890,-1523.52,0.00021917,2]
[329767433,1718656243899,-538.51051077,0.00021917,2]
[329767434,1718656243909,-500.0,0.00021917,2]
[329767435,1718656243918,-1606.53,0.00021917,2]
[329767436,1718656243928,-500.0,0.00021917,2]
[329767437,1718656243938,-727.53,0.00021917,2]
[329767438,1718656243947,-500.0,0.00021917,2]
[329767439,1718656243957,-500.0,0.00021917,2]
[329767441,1718656243967,-500.0,0.00021917,2]
[329767443,1718656243976,-981.05,0.00021917,2]
[329767445,1718656243986,-770.11,0.00021917,2]
[329767447,1718656243996,-500.0,0.00021917,2]
[329767449,1718656244005,-1282.32,0.00021917,2]
[329767451,1718656244015,-716.13,0.00021917,2]
[329767453,1718656244025,-514.37,0.00021917,2]
[329767455,1718656244035,-500.0,0.00021917,2]
[329767457,1718656244045,-500.0,0.00021917,2]
[329767459,1718656244055,-524.17,0.00021917,2]
[329767461,1718656244065,-500.0,0.00021917,2]
[329767463,1718656244075,-500.0,0.00021917,2]
[329767465,1718656244084,-500.0,0.00021917,2]
[329767467,1718656244093,-500.0,0.00021917,2]
[329767469,1718656244102,-579.82,0.00021917,2]
[329767471,1718656244112,-968.12,0.00021917,2]
[329767473,1718656244123,-500.0,0.00021917,2]
[329767475,1718656244134,-500.0,0.00021917,2]
[329767477,1718656244144,-500.0,0.00021917,2]
[329767479,1718656244154,-846.42,0.00021917,2]
[329767481,1718656244164,-500.0,0.00021917,2]
[329767483,1718656244174,-500.0,0.00021917,2]
[329767485,1718656244184,-500.0,0.00021917,2]
[329767487,1718656244194,-500.0,0.00021917,2]
[329767489,1718656244204,-568.37,0.00021917,2]
[329767491,1718656244213,-500.0,0.00021917,2]
[329767493,1718656244223,-500.0,0.00021917,2]
[329767495,1718656244232,-500.0,0.00021917,2]
[329767497,1718656244242,-500.0,0.00021917,2]
[329767499,1718656244251,-884.72,0.00021917,2]
[329767501,1718656244261,-1023.68,0.00021917,2]
[329767503,1718656244270,-500.0,0.00021917,2]
[329767504,1718656244279,-602.45,0.00021917,2]
[329767505,1718656244288,-500.0,0.00021917,2]
[329767506,1718656244298,-500.0,0.00021917,2]
[329767507,1718656244308,-500.0,0.00021917,2]
[329767508,1718656244318,-811.68,0.00021917,2]
[329767509,1718656244328,-525.6,0.00021917,2]
[329767510,1718656244341,-558.24957234,0.00021917,2]
[329767511,1718656244350,-500.0,0.00021917,2]
[329767512,1718656244360,-920.62,0.00021917,2]
[329767513,1718656244371,-717.5,0.00021917,2]
[329767514,1718656244382,-963.85,0.00021917,2]
[329767516,1718656244392,-871.18,0.00021917,2]
[329767518,1718656244402,-500.0,0.00021917,2]
[329767520,1718656244414,-500.0,0.00021917,2]
[329767522,1718656244425,-582.05,0.00021917,2]
[329767524,1718656244435,-737.29,0.00021917,2]
[329767525,1718656244443,-500.0,0.00021917,2]
[329767527,1718656244452,-891.84,0.00021917,2]
[329767529,1718656244461,-966.62,0.00021917,2]
[329767531,1718656244471,-170.79920074,0.00021917,2]
[329767533,1718656244480,-500.0,0.00021917,2]
[329767535,1718656244489,-500.0,0.00021917,2]
[329767537,1718656244498,-500.0,0.00021917,2]
[329767539,1718656244508,-500.0,0.00021917,2]
[329767541,1718656244518,-500.0,0.00021917,2]
[329767543,1718656244527,-866.5,0.00021917,2]
[329767545,1718656244536,-1854.54,0.00021917,2]
[329767548,1718656244546,-832.89,0.00021917,2]
[329767550,1718656244555,-1311.16,0.00021917,2]
[329767551,1718656244564,-1500.57,0.00021917,2]
[329767554,1718656244574,-500.0,0.00021917,2]
[329767556,1718656244584,-575.47,0.00021917,2]
[329767558,1718656244593,-805.31,0.00021917,2]
[329767560,1718656244602,-500.0,0.00021917,2]
[329767562,1718656244611,-1073.78,0.00021917,2]
[329767564,1718656244621,-2060.66,0.00021917,2]
[329767566,1718656244630,-500.0,0.00021917,2]
[329767567,1718656244639,-500.0,0.00021917,2]
[329767569,1718656244648,-500.0,0.00021917,2]
[329767572,1718656244658,-745.3,0.00021917,2]
[329767574,1718656244668,-500.0,0.00021917,2]
[329767576,1718656244678,-500.0,0.00021917,2]
[329767578,1718656244687,-634.39,0.00021917,2]
[329767580,1718656244695,-1196.44,0.00021917,2]
[329767581,1718656244704,-500.0,0.00021917,2]
[329767583,1718656244714,-479.97889632,0.00021917,2]
[329767585,1718656244723,-500.0,0.00021917,2]
[329767587,1718656244732,-2009.58,0.00021917,2]
[329767589,1718656244742,-592.63,0.00021917,2]
[329767592,1718656244751,-500.0,0.00021917,2]